fUST/lending_fUST_20241101
["ID","MTS","AMOUNT","RATE_DAILY","PERIOD"]
[341116777,1730398238747,-500.0,0.00032052,2]
[341116778,1730398238757,-500.0,0.00032052,2]
[341116779,1730398238766,-500.0,0.00032052,2]
[341116780,1730398238775,-500.0,0.00032052,2]
[341116781,1730398238785,-471.68841521,0.00032052,2]
[341116782,1730398238795,-263.10968456,0.00032052,2]
[341116783,1730398238804,-500.0,0.00032054,3]
[341116784,1730398238816,-160.0,0.00032098,3]
[341116785,1730398238826,-1002.91013693,0.00032301,2]
[341116786,1730398238836,-500.0,0.00032328,3]
[341116787,1730398238845,-500.0,0.00032602,3]
[341116788,1730398238854,-1117.37649628,0.00032753,2]
[341116789,1730398238864,-156.041,0.0003276,2]
[341116790,1730398238873,-155.963,0.0003282,60]
[341116791,1730398238883,-500.0,0.00032876,3]
[341116792,1730398238893,-190.325041,0.00032877,120]
[341116793,1730398238908,-266.93955087,0.00032877,2]
[341116794,1730398238918,-655.43397569,0.00033,3]
[341116795,1730398238928,-655.55725,0.00033072,2]
[341116796,1730398238937,-500.0,0.0003315,3]
[341116797,1730398239046,-153.0,0.00033278,2]
[341116798,1730398239079,-153.0,0.00033278,2]
[341116799,1730398239088,-153.0,0.00033278,2]
[341116800,1730398239098,-151.0,0.00033283,7]
[341116801,1730398239107,-150.197,0.00033389,7]
[341116802,1730398239117,-3208.758,0.00033389,2]
[341116803,1730398239126,-500.0,0.00033399,2]
[341116804,1730398239137,-500.0,0.00033424,3]
[341116805,1730398239147,-170.84,0.00033442,2]
[341116806,1730398239157,-587.0,0.00033464,2]
[341116807,1730398239166,-613.0,0.000335,2]
[341116808,1730398239177,-156.022,0.0003351,5]
[341116809,1730398239188,-1000.0,0.00033576,2]
[341116810,1730398239198,-200.0,0.000336,22]
[341116811,1730398239208,-157.45980935,0.00033644,2]
[341116812,1730398239218,-502.51,0.00033666,3]
[341116813,1730398239228,-502.51,0.00033666,3]
[341116814,1730398239239,-1107.19,0.00033666,10]
[341116815,1730398239250,-1000.0,0.00033671,2]
[341116816,1730398239262,-500.0,0.00033673,5]
[341116817,1730398239271,-500.0,0.00033673,5]
[341116818,1730398239281,-500.0,0.00033673,5]
[341116819,1730398239290,-500.0,0.00033673,2]
[341116820,1730398239299,-74976.39194188,0.00033676,60]
[341116821,1730398239312,-662.732602,0.00033676,60]
[341116830,1730398240001,-1543.90234017,0.00033676,60]
[341116831,1730398240096,-439829.86952083,0.00033676,60]
[341116874,1730398527514,170.716685,0.00013973,2]
[341116875,1730399044111,166.35605,0.00013973,2]
[341116965,1730399439160,-2503.45777599,0.00020377,2]
[341116966,1730399439173,-266.72731337,0.00020377,2]
[341116967,1730399439182,-165.0,0.00027,2]
[341116968,1730399439191,-223.5496722,0.0002727,2]
[341116969,1730399439201,-187.785344,0.00027304,2]
[341116970,1730399439210,-20.68463738,0.0002737,4]
[341116974,1730399440120,-1678.46697414,0.0002737,4]
[341116975,1730399440130,-193.085172,0.00027437,2]
[341116976,1730399440142,-193.085172,0.00027512,2]
[341116977,1730399440152,-193.085172,0.00027587,2]
[341116978,1730399440162,-193.085172,0.00027662,2]
[341116979,1730399440171,-193.085172,0.00027738,2]
[341116980,1730399440181,-193.085172,0.00027813,2]
[341116981,1730399440191,-193.085172,0.00027888,2]
[341116982,1730399440201,-193.085172,0.00027963,2]
[341116983,1730399440212,-300.0,0.00028038,2]
[341116984,1730399440222,-193.085172,0.00028039,2]
[341116985,1730399440232,-193.085172,0.00028114,2]
[341116986,1730399440241,-193.085172,0.00028189,2]
[341116987,1730399440252,-193.085172,0.00028264,2]
[341116988,1730399440261,-193.085172,0.0002834,2]
[341116989,1730399440272,-193.085172,0.00028415,2]
[341116990,1730399440282,-193.085172,0.0002849,2]
[341116991,1730399440292,-193.085172,0.00028565,2]
[341116992,1730399440302,-193.085172,0.00028641,2]
[341116993,1730399440311,-223.5496722,0.00028691,2]
[341116994,1730399440322,-193.085172,0.00028716,2]
[341116995,1730399440332,-1863.10327634,0.00028721,2]
[341116996,1730399440346,-3136.89672366,0.00028721,2]
[341116997,1730399440356,-193.085172,0.00028791,2]
[341116998,1730399440365,-500.0,0.000288,5]
[341116999,1730399440376,-500.0,0.000288,2]
[341117000,1730399440388,-1905.84823369,0.00028852,2]
[341117001,1730399440398,-193.085172,0.00028867,2]
[341117002,1730399440407,-24900.0,0.00029488,2]
[341117003,1730399440417,-500.0,0.00030136,3]
[341117004,1730399440428,-420.0,0.0003028,2]
[341117005,1730399440437,-500.0,0.0003041,3]
[341117006,1730399440448,-160.633,0.00030615,26]
[341117007,1730399440458,-500.0,0.00030615,2]
[341117008,1730399440469,-454.04211012,0.00030615,5]
[341117009,1730399440481,-501.98599992,0.00030615,5]
[341117010,1730399440492,-500.0,0.00030684,3]
[341117011,1730399440502,-500.0,0.00030958,3]
[341117012,1730399440511,-500.0,0.00031232,3]
[341117013,1730399440523,-245.867,0.0003124,2]
[341117014,1730399440533,-261.14648902,0.00031506,3]
[341117015,1730399440544,-420.0,0.000325,2]
[341117016,1730399440555,-587.0,0.00032701,2]
[341117017,1730399440565,-190.325041,0.00032877,120]
[341117018,1730399440574,-258.18823146,0.00032877,2]
[341117019,1730399440583,-294.14177219,0.00033135,7]
[341117020,1730399440593,-219.07649058,0.00033135,7]
[341117021,1730399440603,-500.0,0.00033135,2]
[341117022,1730399440612,-500.0,0.00033135,2]
[341117023,1730399440621,-500.0,0.00033135,2]
[341117024,1730399440631,-500.0,0.00033135,2]
[341117025,1730399440642,-500.0,0.00033135,2]
[341117026,1730399440651,-500.0,0.00033135,2]
[341117027,1730399440661,-500.0,0.00033135,2]
[341117028,1730399440670,-410.5470929,0.00033135,2]
[341117029,1730399440680,-500.0,0.00033135,2]
[341117030,1730399440690,-500.0,0.00033135,2]
[341117031,1730399440802,-500.0,0.00033135,2]
[341117032,1730399440812,-500.0,0.00033135,2]
[341117033,1730399440822,-500.0,0.00033135,2]
[341117034,1730399440831,-500.0,0.00033135,2]
[341117035,1730399440840,-500.0,0.00033135,2]
[341117036,1730399440849,-500.0,0.00033135,2]
[341117037,1730399440858,-500.0,0.00033135,2]
[341117038,1730399440867,-500.0,0.00033135,2]
[341117039,1730399440876,-500.0,0.00033135,2]
[341117040,1730399440885,-500.0,0.00033135,2]
[341117041,1730399440898,-500.0,0.00033135,2]
[341117042,1730399440907,-500.0,0.00033135,2]
[341117043,1730399440917,-500.0,0.00033135,2]
[341117044,1730399440926,-500.0,0.00033135,2]
[341117045,1730399440935,-500.0,0.00033135,2]
[341117046,1730399440945,-500.0,0.00033135,2]
[341117047,1730399440954,-500.0,0.00033135,2]
[341117048,1730399440963,-210.9749991,0.00033136,2]
[341117049,1730399440972,-210.9749991,0.00033136,2]
[341117050,1730399440981,-210.9749991,0.00033136,2]
[341117051,1730399440990,-210.9749991,0.00033136,2]
[341117052,1730399440999,-210.9749991,0.00033136,2]
[341117053,1730399441008,-210.9749991,0.00033136,2]
[341117054,1730399441019,-210.9749991,0.00033136,2]
[341117055,1730399441029,-210.9749991,0.00033136,2]
[341117056,1730399441042,-210.9749991,0.00033136,2]
[341117057,1730399441053,-210.9749991,0.00033136,2]
[341117058,1730399441063,-210.9749991,0.00033136,2]
[341117059,1730399441072,-210.9749991,0.00033136,2]
[341117060,1730399441082,-210.9749991,0.00033136,2]
[341117061,1730399441092,-3735.90008709,0.0003315,2]
[341117062,1730399441101,-153.0,0.00033247,2]
[341117063,1730399441112,-153.0,0.00033247,2]
[341117064,1730399441122,-2108.88,0.00033453,120]
[341117065,1730399441132,-995.07,0.00033576,2]
[341117066,1730399441144,-200.0,0.0003359,30]
[341117067,1730399441154,-1200.46027612,0.000336,14]
[341117068,1730399441164,-3000.0,0.000336,16]
[341117069,1730399441173,-200.0,0.000336,22]
[341117070,1730399441182,-613.0,0.000336,2]
[341117071,1730399441193,-500.0,0.00033609,2]
[341117072,1730399441204,-3000.0,0.0003361,16]
[341117073,1730399441215,-3000.0,0.0003362,16]
[341117074,1730399441226,-245.92432137,0.00033629,2]
[341117075,1730399441236,-3000.0,0.0003363,16]
[341117076,1730399441245,-567.37,0.0003364,3]
[341117077,1730399441256,-567.37,0.0003364,3]
[341117078,1730399441265,-3000.0,0.0003364,16]
[341117079,1730399441275,-3000.0,0.0003365,16]
[341117080,1730399441287,-1000.0,0.00033659,2]
[341117081,1730399441299,-598.73,0.0003366,10]
[341117082,1730399441308,-3000.0,0.0003366,16]
[341117083,1730399441319,-500.0,0.00033664,2]
[341117084,1730399441330,-500.0,0.00033664,2]
[341117085,1730399441339,-3000.0,0.0003367,16]
[341117086,1730399441350,-500.0,0.00033675,2]
[341117087,1730399441359,-500.0,0.00033675,2]
[341117088,1730399441368,-500.0,0.00033675,2]
[341117089,1730399441377,-500.0,0.00033675,2]
[341117090,1730399441386,-456.77832966,0.00033675,2]
[341117091,1730399441396,-130724.06929902,0.00033676,60]
[341117106,1730399445145,5000.0,0.00020117,2]
[341117111,1730399446099,-229495.69374807,0.00033676,60]
[341117115,1730399446390,-152653.73418474,0.00033676,60]
[341117124,1730399563163,159.462205,0.00013973,2]
[341117129,1730400096376,166.35605,0.00013973,2]
[341117345,1730400626056,159.462205,0.00013973,2]
[341117430,1730400632760,-166.666666,0.00025986,2]
[341117432,1730400632770,-3186.935425,0.00026471,2]
[341117434,1730400632780,-256.6373003,0.00026535,2]
[341117436,1730400632789,-166.666666,0.00026695,2]
[341117438,1730400632802,-250.0,0.00026917,2]
[341117440,1730400632812,-250.0,0.0002699,2]
[341117442,1730400632822,-250.0,0.00027064,2]
[341117444,1730400632832,-250.0,0.00027138,2]
[341117446,1730400632842,-300.0,0.00027155,2]
[341117448,1730400632851,-300.0,0.00027155,2]
[341117450,1730400632860,-3076.15056782,0.00027156,2]
[341117514,1730400638334,-110.78485718,0.00027156,2]
[341117516,1730400638344,-250.0,0.00027212,2]
[341117518,1730400638353,-250.0,0.00027286,2]
[341117520,1730400638363,-250.0,0.00027359,2]
[341117522,1730400638373,-166.666666,0.00027403,2]
[341117524,1730400638384,-250.0,0.00027433,2]
[341117526,1730400638396,-250.0,0.00027507,2]
[341117528,1730400638406,-250.0,0.00027581,2]
[341117530,1730400638419,-250.0,0.00027655,2]
[341117532,1730400638431,-250.0,0.00027728,2]
[341117534,1730400638441,-250.0,0.00027802,2]
[341117536,1730400638452,-3186.935425,0.00027841,2]
[341117538,1730400638462,-250.0,0.00027876,2]
[341117540,1730400638471,-250.0,0.0002795,2]
[341117542,1730400638481,-647.8107613,0.00027972,64]
[341117545,1730400638493,-2308.176932,0.00027981,2]
[341117547,1730400638505,-5000.0,0.00027985,2]
[341117548,1730400638515,-703.96612114,0.00027985,2]
[341117549,1730400638525,-24900.0,0.00027985,2]
[341117550,1730400638536,-250.0,0.00028024,2]
[341117551,1730400638546,-250.0,0.00028097,2]
[341117553,1730400638557,-166.666666,0.00028112,2]
[341117554,1730400638566,-250.0,0.00028171,2]
[341117555,1730400638576,-250.0,0.00028245,2]
[341117556,1730400638586,-250.0,0.00028319,2]
[341117557,1730400638595,-742.43613964,0.000287,2]
[341117558,1730400638605,-166.666666,0.0002882,2]
[341117559,1730400638614,-420.0,0.00029353,2]
[341117560,1730400638623,-166.666666,0.00029529,2]
[341117561,1730400638633,-500.0,0.00029686,2]
[341117562,1730400638642,-500.0,0.00029686,2]
[341117563,1730400638651,-500.0,0.00029686,2]
[341117564,1730400638661,-500.0,0.00029686,2]
[341117565,1730400638670,-361.10803908,0.00029686,2]
[341117566,1730400638681,-372.43105576,0.00029686,2]
[341117567,1730400638691,-500.0,0.00029686,2]
[341117568,1730400638700,-500.0,0.00029686,2]
[341117569,1730400638709,-500.0,0.00029686,2]
[341117570,1730400638720,-500.0,0.00029686,2]
[341117571,1730400638730,-544.23991034,0.00029686,2]
[341117572,1730400638740,-265.32769592,0.00029686,2]
[341117573,1730400638751,-610.62147733,0.00029686,2]
[341117574,1730400638760,-507.6608195,0.00029686,2]
[341117575,1730400638771,-500.0,0.00029686,2]
[341117576,1730400638781,-351.83410181,0.00029686,2]
[341117577,1730400638798,-148.16589819,0.00029686,2]
[341117578,1730400638807,-500.0,0.00029686,2]
[341117579,1730400638816,-500.0,0.00029686,2]
[341117580,1730400638826,-500.0,0.00029686,2]
[341117581,1730400638835,-500.0,0.00029686,2]
[341117582,1730400638844,-500.0,0.00029686,2]
[341117583,1730400638854,-368.54828507,0.00029686,2]
[341117586,1730400640348,-131.45171493,0.00029686,2]
[341117588,1730400640358,-650.0,0.00029686,2]
[341117589,1730400640367,-500.0,0.00029686,2]
[341117591,1730400640376,-500.0,0.00029686,2]
[341117593,1730400640387,-500.0,0.00029686,2]
[341117594,1730400640396,-500.0,0.00029686,2]
[341117596,1730400640407,-500.0,0.00029686,2]
[341117597,1730400640420,-428.4679366,0.00029686,2]
[341117598,1730400640430,-500.0,0.00029686,2]
[341117599,1730400640440,-500.0,0.00029686,2]
[341117600,1730400640454,-500.0,0.00029686,2]
[341117601,1730400640465,-500.0,0.00029686,2]
[341117602,1730400640474,-500.0,0.00029686,2]
[341117604,1730400640484,-500.0,0.00029686,2]
[341117606,1730400640495,-300.0,0.00029686,2]
[341117607,1730400640506,-500.0,0.00029686,2]
[341117608,1730400640517,-500.0,0.00029686,2]
[341117609,1730400640527,-500.0,0.00029686,2]
[341117610,1730400640537,-500.0,0.00029686,2]
[341117611,1730400640547,-500.0,0.00029686,2]
[341117612,1730400640557,-500.0,0.00029686,2]
[341117613,1730400640566,-500.0,0.00029686,2]
[341117614,1730400640576,-500.0,0.00029686,2]
[341117616,1730400640586,-500.0,0.00029686,2]
[341117617,1730400640595,-500.0,0.00029686,2]
[341117619,1730400640606,-500.0,0.00029686,2]
[341117620,1730400640616,-500.0,0.00029686,2]
[341117621,1730400640625,-500.0,0.00029686,2]
[341117622,1730400640635,-500.0,0.00029686,2]
[341117623,1730400640645,-500.0,0.00029686,2]
[341117624,1730400640655,-500.0,0.00029686,2]
[341117625,1730400640664,-500.0,0.00029686,2]
[341117626,1730400640674,-500.0,0.00029686,2]
[341117627,1730400640683,-500.0,0.00029686,2]
[341117628,1730400640694,-500.0,0.00029686,2]
[341117629,1730400640704,-500.0,0.00029686,2]
[341117630,1730400640716,-500.0,0.00029686,2]
[341117631,1730400640727,-500.0,0.00029686,2]
[341117632,1730400640739,-500.0,0.00029686,2]
[341117633,1730400640751,-500.0,0.00029686,2]
[341117634,1730400640761,-500.0,0.00029686,2]
[341117635,1730400640770,-500.0,0.00029686,2]
[341117636,1730400640780,-500.0,0.00029686,2]
[341117637,1730400640789,-500.0,0.00029686,2]
[341117638,1730400640798,-500.0,0.00029686,2]
[341117639,1730400640808,-500.0,0.00029686,2]
[341117640,1730400640817,-500.0,0.00029686,2]
[341117641,1730400640827,-250.0,0.00029686,2]
[341117642,1730400640836,-500.0,0.00029686,2]
[341117643,1730400640847,-500.0,0.00029686,2]
[341117644,1730400640857,-500.0,0.00029686,2]
[341117645,1730400640867,-500.0,0.00029686,2]
[341117646,1730400640878,-500.0,0.00029686,2]
[341117647,1730400640889,-500.0,0.00029686,2]
[341117648,1730400640899,-500.0,0.00029686,2]
[341117649,1730400640909,-500.0,0.00029686,2]
[341117650,1730400640920,-314.3,0.00029686,2]
[341117651,1730400640932,-500.0,0.00029686,2]
[341117652,1730400640942,-500.0,0.00029686,2]
[341117653,1730400640952,-500.0,0.00029686,2]
[341117654,1730400640962,-500.0,0.00029686,2]
[341117655,1730400640972,-500.0,0.00029686,2]
[341117656,1730400640981,-500.0,0.00029686,2]
[341117657,1730400640991,-500.0,0.00029686,2]
[341117658,1730400641000,-500.0,0.00029686,2]
[341117659,1730400641010,-500.0,0.00029686,2]
[341117660,1730400641019,-500.0,0.00029686,2]
[341117661,1730400641029,-500.0,0.00029686,2]
[341117662,1730400641038,-500.0,0.00029686,2]
[341117663,1730400641047,-500.0,0.00029686,2]
[341117664,1730400641057,-1096.03993194,0.00029687,2]
[341117665,1730400641067,-500.0,0.00029773,5]
[341117666,1730400641076,-500.0,0.00029773,5]
[341117667,1730400641086,-500.0,0.00029773,5]
[341117668,1730400641096,-500.0,0.00029773,5]
[341117669,1730400641107,-500.0,0.00029773,5]
[341117670,1730400641118,-500.0,0.00029773,5]
[341117671,1730400641128,-502.84952735,0.00029773,2]
[341117672,1730400641138,-500.0,0.00029773,5]
[341117673,1730400641148,-500.0,0.00029773,5]
[341117674,1730400641159,-500.0,0.00029773,2]
[341117675,1730400641169,-500.0,0.00029773,5]
[341117676,1730400641179,-501.5204398,0.00029773,5]
[341117677,1730400641189,-500.0,0.00029773,5]
[341117678,1730400641198,-506.57,0.00029777,3]
[341117679,1730400641207,-253.28,0.00029777,3]
[341117680,1730400641298,-759.87,0.00029777,3]
[341117681,1730400641311,-276.31,0.00029778,3]
[341117682,1730400641320,-233.76133218,0.00029785,2]
[341117683,1730400641330,-500.0,0.00029785,2]
[341117684,1730400641339,-292.38576918,0.00029785,2]
[341117685,1730400641352,-207.61423082,0.00029785,2]
[341117686,1730400641362,-178.53972769,0.00029785,2]
[341117687,1730400641372,-222.99834026,0.00029785,2]
[341117688,1730400641381,-260.28883652,0.00029785,2]
[341117689,1730400641390,-359.61167412,0.00029785,2]
[341117690,1730400641400,-176.408133,0.00029791,2]
[341117691,1730400641413,-420.0,0.00029871,2]
[341117692,1730400641422,-646.07,0.00030136,2]
[341117693,1730400641431,-500.0,0.00030136,2]
[341117694,1730400641442,-500.0,0.00030136,2]
[341117695,1730400641452,-500.0,0.00030136,5]
[341117696,1730400641461,-502.85738832,0.00030136,5]
[341117697,1730400641471,-305.83124494,0.00030136,5]
[341117698,1730400641481,-500.0,0.00030136,2]
[341117699,1730400641491,-500.0,0.00030533,5]
[341117700,1730400641501,-263.71648928,0.00030615,5]
[341117701,1730400641511,-500.0,0.00030615,5]
[341117702,1730400641520,-500.54403551,0.00030615,5]
[341117703,1730400641529,-1096.03993191,0.00030659,2]
[341117704,1730400641538,-156.01,0.0003109,60]
[341117705,1730400641547,-1013.14,0.00031147,3]
[341117706,1730400641557,-506.56,0.00031147,3]
[341117707,1730400641566,-155.994,0.0003141,2]
[341117708,1730400641576,-404.91291344,0.00031473,5]
[341117709,1730400641585,-500.0,0.00031473,5]
[341117710,1730400641595,-1096.03993191,0.00031632,2]
[341117711,1730400641604,-587.0,0.00031729,2]
[341117712,1730400641614,-156.012,0.0003178,7]
[341117713,1730400641625,-160.0,0.00032098,3]
[341117714,1730400641634,-156.356,0.0003247,5]
[341117715,1730400641643,-1096.03993191,0.00032604,2]
[341117716,1730400641652,-500.0,0.00032777,10]
[341117717,1730400641661,-500.0,0.00032777,10]
[341117718,1730400641670,-500.0,0.00032777,10]
[341117719,1730400641679,-500.0,0.00032777,10]
[341117720,1730400641690,-500.0,0.00032777,10]
[341117721,1730400641701,-500.0,0.00032777,10]
[341117722,1730400641712,-500.0,0.00032777,10]
[341117723,1730400641722,-500.0,0.00032777,10]
[341117724,1730400641733,-500.0,0.00032777,10]
[341117725,1730400641742,-500.0,0.00032778,10]
[341117726,1730400641750,-500.0,0.00032778,10]
[341117727,1730400641760,-500.0,0.00032778,10]
[341117728,1730400641771,-587.0,0.00032858,2]
[341117729,1730400641780,-249.72381442,0.00032877,2]
[341117730,1730400641790,-1000.0,0.00033059,2]
[341117731,1730400641799,-1000.0,0.00033113,2]
[341117732,1730400641809,-646.07,0.00033135,2]
[341117733,1730400641819,-153.0,0.0003321,2]
[341117734,1730400641828,-153.0,0.0003321,2]
[341117735,1730400641837,-153.0,0.00033215,2]
[341117736,1730400641847,-987.93296502,0.00033218,2]
[341117737,1730400641857,-1000.0,0.0003323,2]
[341117738,1730400641867,-1000.0,0.00033232,2]
[341117739,1730400641877,-1000.0,0.00033234,2]
[341117740,1730400641886,-1000.0,0.00033256,2]
[341117741,1730400641895,-1000.0,0.00033256,2]
[341117742,1730400641906,-1000.0,0.00033275,2]
[341117743,1730400641915,-1000.0,0.0003328,2]
[341117744,1730400641925,-1000.0,0.00033287,2]
[341117745,1730400641934,-1000.0,0.000333,2]
[341117746,1730400641945,-1000.0,0.00033304,2]
[341117747,1730400641955,-156.034,0.0003335,120]
[341117748,1730400641964,-1000.0,0.0003344,2]
[341117749,1730400641974,-1000.0,0.00033449,2]
[341117750,1730400641984,-1000.0,0.00033452,2]
[341117751,1730400641993,-1000.0,0.00033459,2]
[341117752,1730400642002,-17587.82393003,0.000335,10]
[341117753,1730400642011,-1000.0,0.00033565,2]
[341117754,1730400642021,-9221.26633635,0.00033576,2]
[341117755,1730400642030,-1000.0,0.00033576,2]
[341117756,1730400642039,-1096.03993191,0.00033576,2]
[341117757,1730400642048,-200.0,0.000336,22]
[341117758,1730400642057,-3000.0,0.000336,16]
[341117759,1730400642067,-613.0,0.000336,2]
[341117760,1730400642076,-646.07,0.00033607,2]
[341117761,1730400642086,-500.0,0.00033607,2]
[341117762,1730400642095,-3000.0,0.0003361,16]
[341117763,1730400642105,-3000.0,0.0003362,16]
[341117764,1730400642114,-3000.0,0.0003363,16]
[341117765,1730400642124,-3000.0,0.0003364,16]
[341117766,1730400642133,-646.07,0.00033649,2]
[341117767,1730400642142,-3000.0,0.0003365,16]
[341117768,1730400642151,-3000.0,0.0003366,16]
[341117769,1730400642160,-3000.0,0.0003367,16]
[341117770,1730400642170,-480.22769002,0.00033673,5]
[341117771,1730400642179,-162.12208779,0.00033673,5]
[341117772,1730400642192,-337.87791221,0.00033673,5]
[341117773,1730400642201,-500.0,0.00033673,5]
[341117774,1730400642210,-500.0,0.00033673,5]
[341117775,1730400642219,-65.30208779,0.00033675,2]
[341117776,1730400642231,-580.76791221,0.00033675,2]
[341117777,1730400642241,-646.07,0.00033675,2]
[341117778,1730400642251,-646.07,0.00033675,2]
[341117779,1730400642260,-646.07,0.00033675,2]
[341117780,1730400642269,-646.07,0.00033675,2]
[341117781,1730400642278,-343.95208779,0.00033675,2]
[341117798,1730400643333,-302.0,0.00026793,2]
[341117817,1730400646264,-577.957683,0.00026793,2]
[341117818,1730400646273,-121.292317,0.00029773,5]
[341117819,1730400646295,-436.370037,0.00029773,5]
[341117820,1730400646304,-822.87,0.00033666,10]
[341117821,1730400646313,-302.11791221,0.00033675,2]
[341117822,1730400646323,-646.07,0.00033675,2]
[341117823,1730400646332,-646.07,0.00033675,2]
[341117824,1730400646342,-646.07,0.00033675,2]
[341117825,1730400646352,-646.07,0.00033675,2]
[341117826,1730400646363,-646.07,0.00033675,2]
[341117827,1730400646372,-646.07,0.00033675,2]
[341117828,1730400646381,-646.07,0.00033675,2]
[341117829,1730400646390,-646.07,0.00033675,2]
[341117830,1730400646400,-300.08205079,0.00033675,2]
[341117831,1730400646413,-345.98794921,0.00033675,2]
[341117832,1730400646422,-646.07,0.00033675,2]
[341117833,1730400646431,-646.07,0.00033675,2]
[341117834,1730400646441,-646.07,0.00033675,2]
[341117835,1730400646450,-646.07,0.00033675,2]
[341117836,1730400646460,-646.27,0.00033675,2]
[341117837,1730400646470,-500.0,0.00033675,2]
[341117838,1730400646479,-275167.90580978,0.00033676,60]
[341117840,1730400646491,-151.0,0.00033676,14]
[341117841,1730400646501,-493.164636,0.00033676,14]
[341117842,1730400646510,-151.0,0.00033676,14]
[341117843,1730400646520,-151.0,0.00033676,14]
[341117844,1730400646530,-493.164636,0.00033676,14]
[341117845,1730400646540,-430.500226,0.00033676,14]
[341117846,1730400646549,-430.500226,0.00033676,14]
[341117847,1730400646560,-262.369284,0.00033676,14]
[341117848,1730400646569,-262.369284,0.00033676,14]
[341117849,1730400646581,-151.0,0.00033676,14]
[341117850,1730400646590,-151.0,0.00033676,14]
[341117851,1730400646600,-235.61787,0.00033676,14]
[341117852,1730400646609,-152.807948,0.00033676,5]
[341117853,1730400646618,-152.807948,0.00033676,5]
[341117854,1730400646627,-190.694432,0.00033676,14]
[341117855,1730400646636,-190.694432,0.00033676,14]
[341117856,1730400646646,-1049.928616,0.00033676,14]
[341117858,1730400646655,-1049.928616,0.00033676,14]
[341117859,1730400646663,-151.0,0.00033676,14]
[341117860,1730400646673,-301.368834,0.00033676,14]
[341117861,1730400646682,-151.0,0.00033676,14]
[341117862,1730400646692,-301.368834,0.00033676,14]
[341117863,1730400646701,-151.0,0.00033676,14]
[341117864,1730400646710,-151.0,0.00033676,14]
[341117866,1730400646719,-217.256216,0.00033676,14]
[341117867,1730400646729,-1782.777077,0.00033676,14]
[341117868,1730400646740,-1782.777077,0.00033676,14]
[341117869,1730400646748,-361.103058,0.00033676,14]
[341117870,1730400646758,-308.788937,0.00033676,14]
[341117871,1730400646767,-361.103058,0.00033676,14]
[341117872,1730400646776,-151.0,0.00033676,14]
[341117873,1730400646785,-308.788937,0.00033676,14]
[341117874,1730400646795,-236.063263,0.00033676,14]
[341117875,1730400646804,-236.063263,0.00033676,14]
[341117876,1730400646813,-151.0,0.00033676,14]
[341117877,1730400646823,-151.0,0.00033676,14]
[341117878,1730400646832,-151.0,0.00033676,14]
[341117879,1730400646841,-151.0,0.00033676,14]
[341117880,1730400646852,-415.3868,0.00033676,14]
[341117881,1730400646862,-415.3868,0.00033676,14]
[341117882,1730400646872,-151.0,0.00033676,14]
[341117883,1730400646882,-152.691674,0.00033676,14]
[341117884,1730400646891,-151.0,0.00033676,14]
[341117885,1730400646900,-3000.0,0.0003368,16]
[341117886,1730400646910,-3000.0,0.0003369,17]
[341117887,1730400646919,-3000.0,0.000337,17]
[341117888,1730400646929,-1000.0,0.00033702,2]